[Event "13th All African Rapid-ch Men 2024"]
[Site "Accra"]
[Date "2024.03.10"]
[Round "3.8"]
[White "Frempong-Smart Daniel"]
[Black "Asabri, Hussien"]
[Result "0-1"]
[ECO "E63"]
[WhiteElo "1877"]
[BlackElo "2196"]
[Annotator "RC"]
[PlyCount "70"]
[EventDate "2024.03.07"]
[EventType "rapid"]
[EventCountry "GHA"]
[SourceTitle "playchess.com"]
[Source "ChessBase"]
[SourceQuality "1"]
[TimeControl "900+10"]

1. d4 {[%emt 0:00:03]} Nf6 {[%emt 0:00:00]} 2. Nf3 {[%emt 0:00:02]} g6 {[%emt 0:00:01]} 3. g3 {[%emt 0:00:02]} Bg7 {[%emt 0:00:00]} 4. Bg2 {[%emt 0:00:02]} O-O {[%emt 0:00:01]} 5. O-O {[%emt 0:00:05]} d6 {[%emt 0:00:00]} 6. c4 {[%emt 0:00:04]} Nc6 {[%emt 0:00:05]} 7. Nc3 {[%emt 0:00:04]} a6 {[%emt 0:00:00]} 8. h3 {[%emt 0:00:07]} Rb8 {[%emt 0:00:01]} 9. e4 {[%emt 0:01:59]} b5 {[%emt 0:00:02]} 10. cxb5 {[%emt 0:00:03]} axb5 {[%emt 0:00:01]} 11. Qc2 {[%emt 0:00:58]} b4 {[%emt 0:01:29]} 12. Ne2 {[%emt 0:00:26]} Ba6 {[%emt 0:01:19]} 13. Re1 {[%emt 0:00:32]} Qd7 {[%emt 0:00:44]} 14. Be3 {[%emt 0:01:54]} b3 {[%emt 0:02:16]} 15. axb3 {[%emt 0:00:28]} Nb4 {[%emt 0:00:05]} 16. Qd1 {[%emt 0:02:02]} Bd3 {[%emt 0:03:50]} 17. e5 {[%emt 0:02:53]} Nfd5 {[%emt 0:04:34]} 18. Nf4 {[%emt 0:01:05]} Bc2 {[%emt 0:00:39]} 19. Qd2 {[%emt 0:00:20]} Bxb3 {[%emt 0:00:41]} 20. Nxd5 {[%emt 0:01:37]} Bxd5 {[%emt 0:00:21]} 21. Rec1 {[%emt 0:01:07]} Rfd8 {[%emt 0:00:52]} 22. Ra7 {[%emt 0:00:29]} Nc6 {[%emt 0:00:30]} 23. Ra6 {[%emt 0:00:21]} Nb4 {[%emt 0:00:18]} 24. Ra7 {[%emt 0:00:03]} Nc6 {[%emt 0:00:18]} 25. Ra6 {[%emt 0:00:02]} Rb6 {[%emt 0:00:30]} 26. Rxb6 {[%emt 0:00:45]} cxb6 {[%emt 0:00:01]} 27. exd6 {[%emt 0:00:17]} Qxd6 {[%emt 0:00:08]} 28. Rd1 {[%emt 0:00:52]} Bf6 {[%emt 0:00:20]} 29. Qc3 {[%emt 0:00:16]} e6 {[%emt 0:00:23]} 30. Kf1 {[%emt 0:00:46]} Qb4 {[%emt 0:00:12]} 31. Ne5 {[%emt 0:00:17]} Qb5+ {[%emt 0:00:10]} 32. Kg1 {[%emt 0:00:02]} Bxg2 {[%emt 0:00:03]} 33. Ng4 {[%emt 0:00:16]} Bg7 {[%emt 0:00:18]} 34. Kxg2 {[%emt 0:00:02]} Qd5+ {[%emt 0:00:06]} 35. f3 {[%emt 0:00:06]} e5 {[%emt 0:00:16]} 0-1

[Event "13th All African Rapid-ch Men 2024"]
[Site "Accra"]
[Date "2024.03.10"]
[Round "3.9"]
[White "Silva, David"]
[Black "Fomevor, Cephas Clinton"]
[Result "1-0"]
[ECO "B11"]
[WhiteElo "2358"]
[BlackElo "1887"]
[Annotator "TA"]
[PlyCount "67"]
[EventDate "2024.03.07"]
[EventType "rapid"]
[EventCountry "GHA"]
[SourceTitle "playchess.com"]
[Source "ChessBase"]
[SourceQuality "1"]
[TimeControl "900+10"]

{[%evp 9,67,24,39,22,23,22,32,30,25,22,40,34,39,32,42,48,65,27,33,18,42,18,29,26,107,96,189,69,97,81,90,60,164,166,231,130,453,457,441,458,456,452,562,470,613,612,917,627,632,652,639,634,902,902,880,783,941,939,929,779]} 1. e4 {[%emt 0:00:01]} c6 {[%emt 0:00:01]} 2. Nc3 {[%emt 0:00:03]} d5 {[%emt 0:00:01]} 3. Nf3 {[%emt 0:00:01]} dxe4 {[%emt 0:00:01]} 4. Nxe4 {[%emt 0:00:02]} Nd7 {[%emt 0:00:01]} 5. Bc4 {[%emt 0:00:03]} Ngf6 {[%emt 0:00:07]} 6. Qe2 {[%emt 0:00:02]} Nxe4 {[%emt 0:00:06]} 7. Qxe4 {[%emt 0:00:01]} Nf6 {[%emt 0:00:02] [#]} 8. Ne5 $1 {[%emt 0:00:03][%csl Ge5][%cal Rc4f7] White is slightly better.} e6 {[%emt 0:00:01]} 9. Qe2 $40 {[%emt 0:00:01][%mdl 128] White is up to no good.} Bd6 {[%emt 0:00:03]} 10. d4 {[%emt 0:00:02]} Qc7 {[%emt 0:00:09]} 11. O-O {[%emt 0:00:02]} h6 {[%emt 0:00:50]} 12. Re1 {[%emt 0:00:07]} O-O {[%emt 0:00:43]} 13. Bd3 {[%emt 0:00:36] White is more active.} c5 {[%emt 0:00:22]} 14. dxc5 {[%emt 0:00:09]} Qxc5 {[%emt 0:01:26]} 15. Nc4 {[%emt 0:02:24]} Be7 {[%emt 0:01:34]} 16. Qf3 {[%emt 0:00:08]} Qd5 {[%emt 0:00:49]} (16... Rd8 $11 {remains equal.}) 17. Qg3 $16 {[%emt 0:00:05]} Kh8 {[%emt 0:00:38] [#]} (17... b5 $16 {is a better defense.} 18. Re5 Qd4 19. Rxb5 Ba6) 18. a4 {[%emt 0:00:15]} ({White should play} 18. Ne5 $1 $18) 18... Bd7 {[%emt 0:00:53]} 19. Ne5 {[%emt 0:00:54]} Bd6 {[%emt 0:00:52]} 20. Bf4 {[%emt 0:08:41][%cal Oe5f7] Hoping for Nxf7+!} Bxe5 {[%emt 0:05:59]} (20... Nh5 $14 21. Nxf7+ Rxf7) 21. Bxe5 $18 {[%emt 0:00:07][%cal Od3e4] Strongly threatening Be4!} Bc6 {[%emt 0:01:01] Black is weak on the dark squares} (21... Nh5 {keeps fighting.} 22. Qh3 f6) 22. b4 {[%emt 0:01:03]} ({Better is} 22. Rad1 $18) 22... a6 $2 {[%emt 0:00:11][%mdl 8192] Loses the game.} (22... Nh5 $16 23. c4 Qd7) 23. c4 {[%emt 0:00:07] White is clearly winning.} Qd8 {[%emt 0:00:07]} 24. b5 {[%emt 0:00:02]} Bd7 {[%emt 0:00:33]} 25. Rad1 {[%emt 0:00:19]} Nh5 {[%emt 0:00:56]} 26. Qh3 {[%emt 0:00:07]} Nf6 {[%emt 0:00:56]} 27. Bb1 {[%emt 0:00:02] This pair of bishops is nice.} Qe7 {[%emt 0:00:42]} 28. Bxf6 {[%emt 0:00:04]} Qxf6 {[%emt 0:00:12]} 29. Rxd7 {[%emt 0:00:04]} axb5 {[%emt 0:00:10]} 30. axb5 {[%emt 0:00:04]} Ra1 {[%emt 0:00:19]} 31. Qd3 {[%emt 0:00:06]} g6 {[%emt 0:00:04]} 32. g3 {[%emt 0:00:25]} Kg7 {[%emt 0:00:03]} 33. Rxb7 {[%emt 0:00:25]} Rd8 {[%emt 0:00:11]} 34. Rd7 {[%emt 0:00:03] Weighted Error Value: White=0.37/Black=0.54.  Loses game:     	---       	Black=1      Mistake:       	White=2     	Black=4      Inaccurate:     	White=2     	Black=3      OK:         	White=8     	Black=7      Best:        	White=1     	---} 1-0

[Event "13th All African Rapid-ch Men 2024"]
[Site "Accra"]
[Date "2024.03.10"]
[Round "3.10"]
[White "Oluka Robert Mcligeyo"]
[Black "Yacouba, Souley Moussa"]
[Result "1-0"]
[ECO "C41"]
[WhiteElo "2041"]
[BlackElo "1645"]
[Annotator "RC"]
[PlyCount "37"]
[EventDate "2024.03.07"]
[EventType "rapid"]
[EventCountry "GHA"]
[SourceTitle "playchess.com"]
[Source "ChessBase"]
[SourceQuality "1"]
[TimeControl "900+10"]

1. e4 {[%emt 0:00:01]} e5 {[%emt 0:00:04]} 2. Nf3 {[%emt 0:00:02]} d6 {[%emt 0:00:29]} 3. d4 {[%emt 0:00:05]} Bg4 {[%emt 0:01:17]} 4. dxe5 {[%emt 0:00:02]} Bxf3 {[%emt 0:00:21]} 5. Qxf3 {[%emt 0:00:02]} dxe5 {[%emt 0:00:10]} 6. Bc4 {[%emt 0:00:03]} Nf6 {[%emt 0:00:08]} 7. Nc3 {[%emt 0:00:03]} Bb4 {[%emt 0:00:06]} 8. Bd2 {[%emt 0:00:06]} Nc6 {[%emt 0:00:52]} 9. O-O-O {[%emt 0:00:12]} Bd6 {[%emt 0:00:49]} 10. Bg5 {[%emt 0:00:10]} O-O {[%emt 0:02:15]} 11. Nd5 {[%emt 0:00:04]} Nd4 {[%emt 0:00:12]} 12. Rxd4 {[%emt 0:00:07]} exd4 {[%emt 0:00:23]} 13. Nxf6+ {[%emt 0:00:03]} gxf6 {[%emt 0:00:14]} 14. Bxf6 {[%emt 0:00:03]} Qd7 {[%emt 0:01:15]} 15. e5 {[%emt 0:00:02]} Bxe5 {[%emt 0:03:21]} 16. Bxe5 {[%emt 0:00:02]} Rfe8 {[%emt 0:00:53]} 17. Qg3+ {[%emt 0:00:49]} Kf8 {[%emt 0:00:06]} 18. Bf6 {[%emt 0:00:10]} Re6 {[%emt 0:01:30]} 19. Qg7+ {[%emt 0:00:03]} 1-0

[Event "13th All African Rapid-ch Men 2024"]
[Site "Accra"]
[Date "2024.03.10"]
[Round "3.11"]
[White "Ntamatungiro, Wilfried"]
[Black "Mahamat Hachim Bachar"]
[Result "0-1"]
[ECO "C41"]
[WhiteElo "1905"]
[BlackElo "1843"]
[Annotator "RC"]
[PlyCount "94"]
[EventDate "2024.03.07"]
[EventType "rapid"]
[EventCountry "GHA"]
[SourceTitle "playchess.com"]
[Source "ChessBase"]
[SourceQuality "1"]
[TimeControl "900+10"]

1. e4 {[%emt 0:00:02]} e5 {[%emt 0:00:01]} 2. Nf3 {[%emt 0:00:02]} d6 {[%emt 0:00:07]} 3. d4 {[%emt 0:00:09]} exd4 {[%emt 0:00:15]} 4. Bc4 {[%emt 0:00:32]} c5 {[%emt 0:00:07]} 5. c3 {[%emt 0:00:04]} dxc3 {[%emt 0:00:11]} 6. Nxc3 {[%emt 0:00:17]} Nf6 {[%emt 0:00:02]} 7. Ng5 {[%emt 0:00:04]} Be6 {[%emt 0:00:28]} 8. Bxe6 {[%emt 0:01:09]} fxe6 {[%emt 0:00:02]} 9. Nxe6 {[%emt 0:00:10]} Qd7 {[%emt 0:00:14]} 10. Ng5 {[%emt 0:00:35]} h6 {[%emt 0:00:05]} 11. Nf3 {[%emt 0:00:11]} Nc6 {[%emt 0:00:00]} 12. O-O {[%emt 0:00:45]} O-O-O {[%emt 0:00:01]} 13. Bf4 {[%emt 0:00:17]} g5 {[%emt 0:00:02]} 14. Bg3 {[%emt 0:00:02]} Nh5 {[%emt 0:00:03]} 15. Nd5 {[%emt 0:00:03]} Bg7 {[%emt 0:00:21]} 16. Rb1 {[%emt 0:00:29]} g4 {[%emt 0:00:04]} 17. Nh4 {[%emt 0:00:11]} Rhe8 {[%emt 0:00:10]} 18. Re1 {[%emt 0:00:23]} Nxg3 {[%emt 0:00:42]} 19. hxg3 {[%emt 0:00:06]} Bd4 {[%emt 0:00:20]} 20. Nf5 {[%emt 0:00:16]} Rxe4 {[%emt 0:00:03]} 21. Rxe4 {[%emt 0:01:22]} Qxf5 {[%emt 0:00:02]} 22. Rxd4 {[%emt 0:00:02]} cxd4 {[%emt 0:00:07]} 23. Nf4 {[%emt 0:00:13]} h5 {[%emt 0:00:05]} 24. Rc1 {[%emt 0:00:11]} Kb8 {[%emt 0:15:38]} 25. Qb3 {[%emt 0:00:09]} Rc8 {[%emt 0:00:00]} 26. Rd1 {[%emt 0:02:48]} h4 {[%emt 0:00:00]} 27. Ne2 {[%emt 0:01:15]} hxg3 {[%emt 0:00:00]} 28. Qxg3 {[%emt 0:00:19]} Qe5 {[%emt 0:00:00]} 29. Qxg4 {[%emt 0:02:19]} d3 {[%emt 0:00:00]} 30. Nf4 {[%emt 0:00:18]} d2 {[%emt 0:00:00]} 31. Nd3 {[%emt 0:00:52]} Qa5 {[%emt 0:00:00]} 32. Qf4 {[%emt 0:00:11]} Qh5 {[%emt 0:00:00]} 33. Qxd6+ {[%emt 0:01:08]} Ka8 {[%emt 0:00:00]} 34. Rxd2 {[%emt 0:00:40]} Rh8 {[%emt 0:00:00]} 35. f3 {[%emt 0:00:05]} Qh1+ {[%emt 0:00:00]} 36. Kf2 {[%emt 0:00:04]} Rg8 {[%emt 0:00:00]} 37. Ne1 {[%emt 0:00:39]} a6 {[%emt 0:00:00]} 38. a3 {[%emt 0:00:33]} Qh4+ {[%emt 0:00:00]} 39. g3 {[%emt 0:00:49]} Qh1 {[%emt 0:00:00]} 40. Ng2 {[%emt 0:00:22]} Re8 {[%emt 0:00:00]} 41. b4 {[%emt 0:00:13]} Qc1 {[%emt 0:00:00]} 42. Qf4 {[%emt 0:00:22]} Qxa3 {[%emt 0:00:00]} 43. b5 {[%emt 0:00:06]} axb5 {[%emt 0:00:00]} 44. Qf7 {[%emt 0:00:22]} Rf8 {[%emt 0:00:00]} 45. Qd5 {[%emt 0:00:40]} Nb4 {[%emt 0:00:00]} 46. f4 {[%emt 0:00:13]} Nxd5 {[%emt 0:00:00]} 47. Rxd5 {[%emt 0:00:01]} Qa2+ {[%emt 0:00:00]} 0-1

[Event "13th All African Rapid-ch Men 2024"]
[Site "Accra"]
[Date "2024.03.10"]
[Round "4.1"]
[White "Amin, Bassem"]
[Black "Paiva, Donaldo"]
[Result "1/2-1/2"]
[ECO "B13"]
[WhiteElo "2670"]
[BlackElo "2172"]
[Annotator "TA"]
[PlyCount "64"]
[EventDate "2024.03.07"]
[EventType "rapid"]
[EventCountry "GHA"]
[SourceTitle "playchess.com"]
[Source "ChessBase"]
[SourceQuality "1"]
[TimeControl "900+10"]

{[%evp 11,64,14,19,16,49,27,38,33,38,20,31,26,32,11,47,22,24,24,23,14,44,42,34,11,19,0,0,0,0,0,0,0,0,0,4,8,31,27,79,22,90,92,95,0,0,-73,-66,-80,-79,-187,-63,-57,-50,-139,0]} 1. e4 {[%emt 0:00:03]} c6 {[%emt 0:03:54]} 2. d4 {[%emt 0:15:27]} d5 {[%emt 0:00:19]} 3. exd5 {[%emt 0:00:00]} cxd5 {[%emt 0:00:02]} 4. Bd3 {[%emt 0:00:00]} Nc6 {[%emt 0:00:04]} 5. c3 {[%emt 0:00:00]} Qc7 {[%emt 0:00:09]} 6. Ne2 {[%emt 0:00:00]} Bg4 {[%emt 0:00:48]} 7. O-O {[%emt 0:00:00]} g6 {[%emt 0:00:18]} 8. Qb3 {[%emt 0:00:00]} Bxe2 {[%emt 0:01:31]} 9. Bxe2 {[%emt 0:00:00] Weiß steht etwas besser.} e6 {[%emt 0:02:02]} 10. Na3 {[%emt 0:00:00][%cal Oc1f4]} a6 {[%emt 0:00:33] [#]} 11. Bf4 $1 {[%emt 0:00:00]} Qd7 {[%emt 0:00:36]} (11... Qxf4 $6 12. Qxb7 Qb8 13. Qxc6+ Kd8 14. Rfb1 $16 (14. Bxa6 Bxa3 15. Bb5 Ke7 $14)) 12. Rad1 {[%emt 0:00:00]} Nf6 {[%emt 0:00:07]} 13. c4 {[%emt 0:00:00]} Bg7 {[%emt 0:00:50]} 14. c5 {[%emt 0:00:00]} O-O {[%emt 0:00:31]} 15. Nc2 {[%emt 0:00:00]} Rfe8 {[%emt 0:00:22]} 16. Rfe1 {[%emt 0:00:00]} Rad8 {[%emt 0:00:30]} 17. Bf3 {[%emt 0:00:00]} Ne4 {[%emt 0:00:44]} 18. Bxe4 {[%emt 0:00:00]} dxe4 {[%emt 0:00:02]} 19. Bd6 {[%emt 0:00:00]} f5 {[%emt 0:00:02]} 20. f3 {[%emt 0:00:00]} exf3 {[%emt 0:00:04]} 21. Qxf3 {[%emt 0:00:00]} Bf8 {[%emt 0:00:35]} 22. Bxf8 {[%emt 0:00:12]} Kxf8 {[%emt 0:00:03]} 23. Qc3 {[%emt 0:00:50][%cal Od4d5]} Kg8 {[%emt 0:00:28]} 24. b4 {[%emt 0:00:06]} Qd5 {[%emt 0:00:21]} (24... Na7 $11 {hält das Gleichgewicht.}) 25. a4 {[%emt 0:00:09]} (25. Ne3 $1 $16 {[%cal Re3d5]} Qd7 (25... Qxa2 $2 26. Ra1 $18) 26. Nc4) 25... e5 {[%emt 0:00:56]} (25... Qa2 $11 {bleibt in der Remisbreite.}) 26. Ne3 $1 $16 {[%emt 0:00:02]} Qe4 {[%emt 0:00:42] [#]} (26... exd4 $2 27. Nxd5 dxc3 28. Nf6+ Kf7 29. Nxe8 Rxd1 30. Rxd1 $18) 27. d5 {[%emt 0:00:36]} (27. Qb3+ $1 $16 Kg7 28. Nc2) 27... Qxb4 $11 {[%emt 0:00:31]} 28. Qxb4 {[%emt 0:00:39]} (28. Qc1 $11 Nd4 29. d6) 28... Nxb4 $17 {[%emt 0:00:02]} 29. d6 {[%emt 0:00:01]} e4 {[%emt 0:00:13] Und jetzt ...Nd3 wäre schön.} 30. Re2 {[%emt 0:01:14] [#]} (30. Nd5 $17 Nxd5 31. Rxd5) 30... Nd3 {[%emt 0:00:18]} (30... Re5 $1 $19 {[%cal Re5c5]} 31. g4 Rxc5 32. gxf5 gxf5) 31. Nd5 $15 {[%emt 0:00:14]} Kf7 {[%emt 0:00:23]} ({Doch nicht} 31... Nxc5 32. Nf6+ Kf7 33. Nxe8 Rxe8 34. Rc2 Nxa4 35. Rc7+ Ke6 36. Rxb7 $14 (36. Rxh7 Nc3 $11)) 32. Rb1 {[%emt 0:00:05]} ({Günstiger ist} 32. Nc7 $1 $15) 32... Rd7 {[%emt 0:00:55] Gewichteter Fehlerwert: Weiß=0.24 (präzise) /Schwarz=0.19 (sehr präzise) .  Fehler:       	Weiß=5     	Schwarz=4     Ungenau:       	---       	Schwarz=2     OK:         	Weiß=7     	Schwarz=9     Bester:       	Weiß=1     	Schwarz=2     Stark:        	Weiß=1     	---} (32... Nxc5 $17 33. Rc2 Nd7 (33... Nxa4 34. Rxb7+ Ke6 35. d7 $11) 34. Rxb7 Re6) 1/2-1/2

[Event "13th All African Rapid-ch Men 2024"]
[Site "Accra"]
[Date "2024.03.10"]
[Round "4.2"]
[White "Arab, Adlane"]
[Black "Rakotomaharo, Fy Antenaina"]
[Result "1-0"]
[ECO "D24"]
[WhiteElo "2477"]
[BlackElo "2454"]
[Annotator "TA"]
[PlyCount "105"]
[EventDate "2024.03.07"]
[EventType "rapid"]
[EventCountry "GHA"]
[SourceTitle "playchess.com"]
[Source "ChessBase"]
[SourceQuality "1"]
[TimeControl "900+10"]

{[%evp 30,105,44,35,47,42,35,-16,-19,-18,-17,-14,0,0,99,90,106,104,93,101,100,95,106,111,110,8,4,6,117,125,125,125,122,94,120,112,161,143,247,206,289,289,389,269,383,356,713,660,682,677,689,681,1383,1368,1233,1165,972,972,1332,1297,1436,1364,7352,6211,29958,11924,29972,29973,29977,29977,29980,29981,29985,29985,29984,29983,29986,29987]} 1. d4 {[%emt 0:00:03]} d5 {[%emt 0:00:02]} 2. c4 {[%emt 0:00:02]} e6 {[%emt 0:00:02]} 3. Nc3 {[%emt 0:00:06]} Nf6 {[%emt 0:00:08]} 4. Nf3 {[%emt 0:00:07]} dxc4 {[%emt 0:00:02]} 5. e3 {[%emt 0:00:16]} a6 {[%emt 0:00:02]} 6. a4 {[%emt 0:00:05]} b6 {[%emt 0:00:02] D24: Angenommenes Damengambit.} 7. Bxc4 {[%emt 0:00:06]} Bb7 {[%emt 0:00:02]} 8. O-O {[%emt 0:00:19]} Bb4 {[%emt 0:00:03]} 9. Qe2 {[%emt 0:00:22]} O-O {[%emt 0:00:06]} 10. Rd1 {[%emt 0:00:21]} Qe7 {[%emt 0:00:14]} 11. Bd3 {[%emt 0:00:20]} Nbd7 {[%emt 0:00:05]} 12. e4 {[%emt 0:00:50]} e5 {[%emt 0:00:03]} 13. Bg5 {[%emt 0:00:44]} h6 {[%emt 0:01:19]} 14. Bh4 {[%emt 0:00:18]} Rfe8 {[%emt 0:00:14]} 15. dxe5 $146 {[%emt 0:01:13]} ({Predecessor:} 15. Rac1 exd4 16. Nxd4 Bxc3 17. Rxc3 Bxe4 18. Rxc7 Bxd3 19. Qxd3 Nc5 20. Rxe7 Nxd3 21. Bxf6 gxf6 22. Rxe8+ Rxe8 {½-½ Abdyjapar,A (2372)-Mastrovasilis,D (2594) Olympiad-43 Batumi 2018 (2.3)}) 15... Bxc3 {[%emt 0:01:16]} 16. bxc3 {[%emt 0:01:06]} Nxe5 {[%emt 0:00:04]} 17. Nxe5 {[%emt 0:00:03]} Qxe5 {[%emt 0:00:01]} 18. Bg3 {[%emt 0:00:07]} ({Besser ist} 18. f3 $14) 18... Qc5 $11 {[%emt 0:00:20]} 19. e5 {[%emt 0:00:46]} Nd7 {[%emt 0:00:58]} 20. Re1 {[%emt 0:01:04]} Re7 {[%emt 0:03:10]} 21. Kh1 {[%emt 0:00:49]} Nxe5 {[%emt 0:00:57]} (21... Qc6 $11 22. f3 Nc5) 22. Bxe5 $16 {[%emt 0:00:02]} Rae8 {[%emt 0:00:01]} 23. f4 $1 {[%emt 0:00:29]} (23. Bxa6 $2 Rxe5 $19) 23... f6 {[%emt 0:00:09]} 24. Qa2+ $1 {[%emt 0:00:51]} (24. Bxa6 Bxa6 (24... fxe5 $2 25. Bxb7 exf4 26. Qd2 $18) 25. Qxa6 fxe5 26. fxe5 Qxc3 $15 (26... Rxe5 27. Rxe5 Rxe5 28. Qa8+ Kh7 29. Qf3 $17)) 24... Kh8 {[%emt 0:00:44]} 25. Bg6 $1 {[%emt 0:00:03]} fxe5 {[%emt 0:00:27]} 26. Bxe8 {[%emt 0:00:03]} Rxe8 {[%emt 0:00:01]} 27. Rxe5 {[%emt 0:00:14]} (27. fxe5 $1 $16 Rxe5 28. Qc2) 27... Rxe5 $11 {[%emt 0:00:03]} 28. fxe5 {[%emt 0:00:02]} Qxe5 {[%emt 0:00:03]} (28... Qxc3 $11 {bleibt in der Remisbreite.} 29. e6 Bd5) 29. Rf1 $16 {[%emt 0:00:19]} Bd5 {[%emt 0:01:36]} 30. Qc2 {[%emt 0:00:31]} Kg8 {[%emt 0:01:23]} 31. Kg1 {[%emt 0:01:01]} Bc4 {[%emt 0:00:33] [#]} 32. Rd1 $1 {[%emt 0:00:05]} Qe3+ {[%emt 0:01:59] [#]} (32... Bd5 $16 33. Qf2 Bc6) 33. Qf2 $1 $18 {[%emt 0:00:04]} Qg5 {[%emt 0:00:02]} (33... Qe8 $16 {war einen Versuch wert.} 34. h3 Bf7) 34. h4 {[%emt 0:00:18]} Qg6 {[%emt 0:00:09]} (34... Qe7 $142 35. Qd4 Qe2) 35. Rd7 $18 {[%emt 0:00:08]} c5 {[%emt 0:00:31]} 36. Kh2 {[%emt 0:00:38]} Kh7 {[%emt 0:00:18]} (36... Qe8 $142 37. Rd6 Qb8) 37. Qf4 $18 {[%emt 0:00:18]} b5 $2 {[%emt 0:00:22]} (37... Qe8 38. Rd6 Bb3 39. Rxb6 Bxa4 40. Qf5+ (40. Rxa6 Bc6 $18) 40... Kh8) 38. a5 {[%emt 0:00:19]} Qe8 {[%emt 0:02:18]} 39. Rc7 {[%emt 0:00:27]} Bd3 {[%emt 0:00:51]} 40. Qg3 {[%emt 0:00:17]} Qg6 {[%emt 0:00:04]} 41. Qxg6+ {[%emt 0:00:03]} Kxg6 {[%emt 0:00:07]} 42. Rxc5 {[%emt 0:00:01]} Kf6 {[%emt 0:00:20]} 43. Kg3 {[%emt 0:00:22]} Ke6 {[%emt 0:00:06]} 44. Rc7 {[%emt 0:00:06]} g6 {[%emt 0:00:06]} 45. Kf4 {[%emt 0:00:03]} h5 {[%emt 0:00:05]} 46. Ke3 {[%emt 0:00:05]} Bf1 {[%emt 0:00:04]} 47. Rc6+ {[%emt 0:00:08]} Kd5 {[%emt 0:00:04]} 48. Rxg6 {[%emt 0:00:02]} Kc4 {[%emt 0:00:03]} 49. Kd2 {[%emt 0:00:01]} b4 {[%emt 0:00:10]} 50. cxb4 {[%emt 0:00:13]} Kxb4 {[%emt 0:00:02]} 51. Rg5 {[%emt 0:00:02]} Bb5 {[%emt 0:00:07]} 52. Rxh5 {[%emt 0:00:01]} Kxa5 {[%emt 0:00:01]} 53. Rxb5+ {[%emt 0:00:11]} 1-0

[Event "13th All African Rapid-ch Men 2024"]
[Site "Accra"]
[Date "2024.03.10"]
[Round "4.3"]
[White "Zhemba, Jemusse"]
[Black "KIGIGHA, Bomo Lovet"]
[Result "1-0"]
[ECO "B33"]
[WhiteElo "2226"]
[BlackElo "2231"]
[Annotator "TA"]
[PlyCount "63"]
[EventDate "2024.03.07"]
[EventType "rapid"]
[EventCountry "GHA"]
[SourceTitle "playchess.com"]
[Source "ChessBase"]
[SourceQuality "1"]
[TimeControl "900+10"]

{[%evp 14,63,35,34,51,-6,18,15,45,43,79,85,132,87,88,77,86,64,60,38,36,38,70,-58,-7,-111,-104,-98,-87,-95,-87,-166,-154,-175,-174,-183,-42,-38,0,0,519,512,522,528,528,528,509,481,492,487,998,980]} 1. e4 {[%emt 0:15:20]} c5 {[%emt 0:00:01]} 2. Nf3 {[%emt 0:00:00]} Nc6 {[%emt 0:00:01]} 3. d4 {[%emt 0:00:00]} cxd4 {[%emt 0:00:02]} 4. Nxd4 {[%emt 0:00:00]} Qb6 {[%emt 0:00:01]} 5. Nb3 {[%emt 0:00:00]} Nf6 {[%emt 0:00:01]} 6. Nc3 {[%emt 0:00:00]} e6 {[%emt 0:00:01]} 7. Be3 {[%emt 0:00:00]} Qc7 {[%emt 0:00:01]} 8. a3 {[%emt 0:00:00]} a6 {[%emt 0:00:01]} 9. Qf3 {[%emt 0:00:00]} (9. g4 $14) 9... b5 {[%emt 0:00:07]} 10. Qg3 {[%emt 0:00:00]} Qxg3 {[%emt 0:00:12] The position is equal.} 11. hxg3 {[%emt 0:00:00]} Bb7 {[%emt 0:00:01]} 12. f3 {[%emt 0:00:00]} b4 {[%emt 0:00:25]} (12... Bd6 $142) 13. Na4 {[%emt 0:00:00]} bxa3 {[%emt 0:00:24]} 14. bxa3 {[%emt 0:00:00]} d6 {[%emt 0:00:38] Against Nbc5} 15. g4 {[%emt 0:00:00]} Be7 {[%emt 0:00:12]} 16. Be2 {[%emt 0:00:00]} Nd7 {[%emt 0:00:17]} 17. Kf2 {[%emt 0:00:00]} Rc8 {[%emt 0:00:13]} 18. f4 {[%emt 0:00:00] White has more active pieces.} (18. Rab1 $14) 18... O-O {[%emt 0:00:09]} ({Black should try} 18... g5 $15 19. g3 Nf6) 19. g5 {[%emt 0:00:00]} (19. Rab1 $11 {remains equal.}) 19... f6 $17 {[%emt 0:01:36]} 20. gxf6 {[%emt 0:00:00]} Nxf6 {[%emt 0:00:04]} 21. Nd2 {[%emt 0:00:00]} Ne5 {[%emt 0:02:38]} 22. fxe5 {[%emt 0:00:00]} (22. Rab1 $17 {might work better.} Ba8 (22... Bxe4 23. fxe5 Nd5+ 24. Bf3 $11) (22... Nxe4+ 23. Ke1 $11) 23. Nb6 Rxc2 (23... Nxe4+ $2 24. Nxe4 Rxc2 25. Nd2 $18) 24. Nxa8 Nfg4+ 25. Bxg4 Nxg4+ 26. Kf3 Nxe3 27. Kxe3 Rxa8 28. Rb7) 22... Ng4+ $19 {[%emt 0:00:01]} 23. Kg3 {[%emt 0:00:00]} Nxe3 {[%emt 0:00:03]} 24. Bd3 {[%emt 0:00:00][%cal Be2d3,Bd3e4,Be4h7][%mdl 32]} Nxc2 {[%emt 0:02:00]} ({Better is} 24... dxe5 $19 {[%cal Of8f6] aiming for ...Rf6!} 25. Rab1 Rc7) 25. Rab1 $15 {[%emt 0:00:00]} Ba8 {[%emt 0:00:01] A strong pair of Bishops.} 26. Nc4 {[%emt 0:00:00]} Bxe4 $2 {[%emt 0:03:53][%mdl 8192]} 27. Bxe4 $18 {[%emt 0:00:00] White is clearly winning.} Rxc4 {[%emt 0:00:01]} 28. Bxh7+ {[%emt 0:00:00]} Kf7 {[%emt 0:00:01] [#] Strongly threatening ...g6.} 29. Rhf1+ {[%emt 0:00:00]} Ke8 {[%emt 0:00:03] White must now prevent ...Rxf1.} 30. Rb8+ {[%emt 0:00:00]} Kd7 {[%emt 0:01:33]} 31. Rbxf8 {[%emt 0:00:00]} ({But not} 31. Rfxf8 Bxf8 32. Nb6+ (32. Rxf8 Rxa4 33. Rf7+ Ke8 $18) 32... Kc7 33. Rxf8 (33. Nxc4 Kxb8 34. Bxc2 d5 $18) 33... Kxb6 34. exd6 Rd4 35. Bxc2 Rxd6 $18) 31... Bxf8 {[%emt 0:00:06]} (31... Rxa4 $142 32. Bxc2 Rxa3+ 33. R8f3 dxe5 34. Rxa3 Bxa3 35. Rf7+ Kc6 36. Rxg7 a5) 32. Nb6+ {[%emt 0:00:00] Weighted Error Value: White=0.27 (precise) /Black=0.54.  Loses game:     	---       	Black=1      Mistake:       	White=4     	Black=4      Inaccurate:     	White=1     	Black=4      OK:         	White=6     	Black=8      Best:        	White=4     	Black=2} 1-0